fUST/lending_fUST_20250702
["ID","MTS","AMOUNT","RATE_DAILY","PERIOD"]
[369036281,1751441438491,-166.38077036,0.00016373,2]
[369036282,1751441438500,-500.0,0.00016373,2]
[369036283,1751441438510,-500.0,0.00016373,2]
[369036284,1751441438519,-500.0,0.00016373,2]
[369036285,1751441438529,-376.28819171,0.00016373,2]
[369036286,1751441438538,-460.0,0.00016438,2]
[369036287,1751441438547,-254.02805023,0.00016438,2]
[369036288,1751441438557,-460.0,0.00016438,2]
[369036289,1751441438567,-460.0,0.00016438,2]
[369036290,1751441438576,-460.0,0.00016438,2]
[369036291,1751441438586,-460.0,0.00016438,2]
[369036292,1751441438595,-463.92309868,0.00016438,2]
[369036293,1751441438604,-460.0,0.00016438,2]
[369036294,1751441438614,-460.0,0.00016438,2]
[369036295,1751441438623,-460.0,0.00016438,2]
[369036296,1751441438633,-405.30714718,0.00016438,2]
[369036297,1751441438642,-460.0,0.00016438,2]
[369036298,1751441438652,-460.0,0.00016438,2]
[369036299,1751441438661,-460.0,0.00016438,2]
[369036300,1751441438670,-469.92944424,0.00016438,2]
[369036301,1751441438679,-460.0,0.00016438,2]
[369036302,1751441438688,-460.0,0.00016438,2]
[369036303,1751441438697,-460.0,0.00016438,2]
[369036304,1751441438706,-460.0,0.00016438,2]
[369036305,1751441438715,-437.39857999,0.00016438,2]
[369036306,1751441438724,-460.0,0.00016438,2]
[369036307,1751441438734,-460.0,0.00016438,2]
[369036308,1751441438743,-460.0,0.00016438,2]
[369036309,1751441438752,-460.0,0.00016438,2]
[369036310,1751441438761,-307.31287917,0.00016438,2]
[369036311,1751441438770,-460.0,0.00016438,2]
[369036312,1751441438779,-460.0,0.00016438,2]
[369036313,1751441438788,-460.0,0.00016438,2]
[369036314,1751441438798,-460.0,0.00016438,2]
[369036315,1751441438807,-460.0,0.00016438,2]
[369036316,1751441438817,-460.0,0.00016438,2]
[369036317,1751441438828,-460.0,0.00016438,2]
[369036318,1751441438836,-460.0,0.00016438,2]
[369036319,1751441438845,-460.0,0.00016438,2]
[369036320,1751441438854,-460.0,0.00016438,2]
[369036321,1751441438863,-248.4592784,0.00016438,2]
[369036322,1751441438872,-460.0,0.00016438,2]
[369036323,1751441438881,-460.0,0.00016438,2]
[369036324,1751441438891,-462.7363197,0.00016438,2]
[369036325,1751441438901,-460.0,0.00016438,2]
[369036326,1751441438911,-461.40990005,0.00016438,2]
[369036327,1751441438920,-462.79927387,0.00016438,2]
[369036328,1751441438931,-462.69942367,0.00016438,2]
[369036329,1751441438944,-468.54,0.00016438,2]
[369036330,1751441438954,-467.14685063,0.00016438,2]
[369036331,1751441438964,-460.0,0.00016438,2]
[369036332,1751441438974,-460.0,0.00016438,2]
[369036333,1751441438984,-33.21451677,0.00016438,2]
[369036334,1751441438999,-426.78548323,0.00016438,2]
[369036335,1751441439010,-605.90205235,0.00016438,2]
[369036336,1751441439019,-340.11037895,0.00016438,2]
[369036337,1751441439028,-225.07095914,0.00016438,2]
[369036338,1751441439038,-286.46887693,0.00016438,2]
[369036339,1751441439047,-460.0,0.00016438,2]
[369036340,1751441439056,-333.73671688,0.00016438,2]
[369036341,1751441439066,-460.0,0.00016438,2]
[369036342,1751441439075,-460.0,0.00016438,2]
[369036343,1751441439084,-460.0,0.00016438,2]
[369036344,1751441439094,-460.0,0.00016438,2]
[369036345,1751441439103,-460.0,0.00016438,2]
[369036346,1751441439113,-460.0,0.00016438,2]
[369036347,1751441439122,-460.0,0.00016438,2]
[369036348,1751441439132,-440.0,0.00016438,2]
[369036349,1751441439141,-406.27913029,0.00016438,2]
[369036350,1751441439151,-432.53520321,0.00016438,2]
[369036351,1751441439160,-460.0,0.00016438,2]
[369036352,1751441439170,-265.29716967,0.00016438,2]
[369036353,1751441439186,-194.70283033,0.00016438,2]
[369036354,1751441439196,-306.8628758,0.00016438,2]
[369036355,1751441439209,-68.26722581,0.00016438,2]
[369036356,1751441439218,-430.33752276,0.00016438,2]
[369036357,1751441439228,-268.92924193,0.00016438,2]
[369036358,1751441439240,-191.07075807,0.00016438,2]
[369036359,1751441439250,-460.0,0.00016438,2]
[369036360,1751441439260,-49.4428418,0.00016438,2]
[369036361,1751441439271,-410.5571582,0.00016438,2]
[369036362,1751441439281,-460.0,0.00016438,2]
[369036363,1751441439290,-460.0,0.00016438,2]
[369036364,1751441439301,-460.0,0.00016438,2]
[369036365,1751441439311,-242.93630663,0.00016438,2]
[369036366,1751441439323,-217.06369337,0.00016438,2]
[369036367,1751441439332,-253.86070907,0.00016438,2]
[369036368,1751441439342,-495.59785271,0.00016438,2]
[369036369,1751441439351,-460.61696418,0.00016438,2]
[369036370,1751441439360,-460.0,0.00016438,2]
[369036371,1751441439370,-430.0,0.00016438,2]
[369036372,1751441439379,-460.0,0.00016438,2]
[369036373,1751441439388,-460.0,0.00016438,2]
[369036374,1751441439397,-443.0847114,0.00016438,2]
[369036375,1751441439406,-484.20097061,0.00016438,2]
[369036376,1751441439418,-15.79902939,0.00016438,2]
[369036377,1751441439427,-460.0,0.00016438,2]
[369036378,1751441439437,-518.00140869,0.00016438,2]
[369036379,1751441439446,-181.64323192,0.00016438,2]
[369036380,1751441439455,-460.0,0.00016438,2]
[369036381,1751441439465,-460.0,0.00016438,2]
[369036382,1751441439474,-460.0,0.00016438,2]
[369036383,1751441439483,-460.0,0.00016438,2]
[369036384,1751441439492,-460.0,0.00016438,2]
[369036385,1751441439502,-460.0,0.00016438,2]
[369036386,1751441439511,-460.0,0.00016438,2]
[369036387,1751441439520,-460.0,0.00016438,2]
[369036388,1751441439530,-460.0,0.00016438,2]
[369036389,1751441439539,-460.0,0.00016438,2]
[369036390,1751441439549,-461.78941418,0.00016438,2]
[369036391,1751441439558,-460.0,0.00016438,2]
[369036392,1751441439567,-460.0,0.00016438,2]
[369036393,1751441439577,-460.0,0.00016438,2]
[369036394,1751441439586,-460.0,0.00016438,2]
[369036395,1751441439595,-735.62,0.00016438,2]
[369036396,1751441439605,-193.84490119,0.00016438,2]
[369036397,1751441439617,-266.15509881,0.00016438,2]
[369036398,1751441439626,-700.62,0.00016438,2]
[369036399,1751441439636,-460.0,0.00016438,2]
[369036400,1751441439645,-460.0,0.00016438,2]
[369036401,1751441439654,-501.99428105,0.00016438,2]
[369036402,1751441439664,-500.0,0.00016438,2]
[369036403,1751441439673,-460.0,0.00016438,2]
[369036404,1751441439683,-460.0,0.00016438,2]
[369036405,1751441439692,-438.26491176,0.00016438,2]
[369036406,1751441439701,-460.0,0.00016438,2]
[369036407,1751441439711,-460.0,0.00016438,2]
[369036408,1751441439720,-460.0,0.00016438,2]
[369036409,1751441439730,-460.0,0.00016438,2]
[369036410,1751441439739,-460.0,0.00016438,2]
[369036411,1751441439749,-460.0,0.00016438,2]
[369036412,1751441439758,-460.0,0.00016438,2]
[369036413,1751441439768,-460.0,0.00016438,2]
[369036414,1751441439933,-536.5,0.00016438,2]
[369036415,1751441439947,-469.0,0.00016438,2]
[369036416,1751441439957,-460.06937295,0.00016438,2]
[369036417,1751441439967,-460.0,0.00016438,2]
[369036418,1751441439976,-460.0,0.00016438,2]
[369036419,1751441439986,-463.8438851,0.00016438,2]
[369036420,1751441439996,-460.0,0.00016438,2]
[369036421,1751441440006,-464.70112044,0.00016438,2]
[369036422,1751441440017,-460.0,0.00016438,2]
[369036423,1751441440026,-460.0,0.00016438,2]
[369036424,1751441440036,-146.17458441,0.00016438,2]
[369036425,1751441440048,-313.82541559,0.00016438,2]
[369036426,1751441440058,-460.0,0.00016438,2]
[369036427,1751441440068,-202.86931206,0.00016438,2]
[369036428,1751441440078,-500.0,0.00016438,2]
[369036429,1751441440087,-460.0,0.00016438,2]
[369036430,1751441440098,-460.0,0.00016438,2]
[369036431,1751441440107,-460.0,0.00016438,2]
[369036432,1751441440116,-460.0,0.00016438,2]
[369036433,1751441440126,-460.0,0.00016438,2]
[369036434,1751441440135,-460.0,0.00016438,2]
[369036435,1751441440144,-460.0,0.00016438,2]
[369036437,1751441440154,-460.0,0.00016438,2]
[369036438,1751441440167,-460.0,0.00016438,2]
[369036439,1751441440177,-460.0,0.00016438,2]
[369036440,1751441440187,-460.0,0.00016438,2]
[369036441,1751441440196,-460.0,0.00016438,2]
[369036442,1751441440205,-460.0,0.00016438,2]
[369036443,1751441440215,-460.0,0.00016438,2]
[369036444,1751441440224,-253.61704415,0.00016438,2]
[369036445,1751441440233,-460.0,0.00016438,2]
[369036446,1751441440243,-412.70090933,0.00016438,2]
[369036447,1751441440252,-239.11198304,0.00016438,2]
[369036449,1751441440262,-460.0,0.00016438,2]
[369036450,1751441440272,-419.22318209,0.00016438,2]
[369036451,1751441440281,-460.0,0.00016438,2]
[369036452,1751441440292,-460.0,0.00016438,2]
[369036453,1751441440301,-155.4933477,0.00016438,2]
[369036454,1751441440310,-460.0,0.00016438,2]
[369036455,1751441440320,-437.39020635,0.00016438,2]
[369036456,1751441440330,-460.0,0.00016438,2]
[369036457,1751441440340,-460.0,0.00016438,2]
[369036458,1751441440349,-460.0,0.00016438,2]
[369036459,1751441440359,-460.0,0.00016438,2]
[369036460,1751441440369,-436.47390211,0.00016438,2]
[369036462,1751441440378,-460.0,0.00016438,2]
[369036464,1751441440387,-315.88111285,0.00016438,2]
[369036466,1751441440397,-460.0,0.00016438,2]
[369036468,1751441440406,-460.0,0.00016438,2]
[369036470,1751441440415,-591.49438815,0.00016438,2]
[369036472,1751441440424,-500.0,0.00016438,2]
[369036474,1751441440434,-500.0,0.00016438,2]
[369036476,1751441440443,-500.0,0.00016438,2]
[369036478,1751441440452,-500.0,0.00016438,2]
[369036480,1751441440461,-460.0,0.00016438,2]
[369036482,1751441440471,-460.0,0.00016438,2]
[369036484,1751441440481,-460.0,0.00016438,2]
[369036486,1751441440490,-460.0,0.00016438,2]
[369036488,1751441440499,-1345.43,0.00016438,2]
[369036490,1751441440508,-1345.43,0.00016438,2]
[369036492,1751441440517,-460.0,0.00016438,2]
[369036494,1751441440527,-249.79784152,0.00016438,2]
[369036496,1751441440536,-1345.43,0.00016438,2]
[369036498,1751441440545,-1345.43,0.00016438,2]
[369036500,1751441440555,-1345.43,0.00016438,2]
[369036502,1751441440565,-1345.43,0.00016438,2]
[369036504,1751441440574,-460.0,0.00016438,2]
[369036506,1751441440584,-460.0,0.00016438,2]
[369036508,1751441440594,-460.0,0.00016438,2]
[369036510,1751441440603,-500.0,0.00016438,2]
[369036512,1751441440612,-460.0,0.00016438,2]
[369036514,1751441440621,-460.0,0.00016438,2]
[369036516,1751441440630,-556.67,0.00016438,2]
[369036518,1751441440640,-432.63142927,0.00016438,2]
[369036520,1751441440649,-659.26,0.00016438,2]
[369036522,1751441440658,-460.0,0.00016438,2]
[369036524,1751441440667,-460.0,0.00016438,2]
[369036526,1751441440676,-460.0,0.00016438,2]
[369036528,1751441440686,-430.0,0.00016438,2]
[369036530,1751441440696,-460.0,0.00016438,2]
[369036532,1751441440705,-460.0,0.00016438,2]
[369036534,1751441440715,-460.0,0.00016438,2]
[369036536,1751441440724,-460.0,0.00016438,2]
[369036538,1751441440733,-460.0,0.00016438,2]
[369036540,1751441440743,-377.90620929,0.00016438,2]
[369036542,1751441440753,-547.13,0.00016438,2]
[369036544,1751441440763,-460.0,0.00016438,2]
[369036546,1751441440772,-460.0,0.00016438,2]
[369036548,1751441440781,-460.91814774,0.00016438,2]
[369036550,1751441440791,-501.20496401,0.00016438,2]
[369036552,1751441440800,-433.23730491,0.00016438,2]
[369036554,1751441440811,-705.14,0.00016438,2]
[369036556,1751441440820,-460.0,0.00016438,2]
[369036558,1751441440830,-1940.82,0.00016438,2]
[369036560,1751441440839,-460.0,0.00016438,2]
[369036562,1751441440848,-460.0,0.00016438,2]
[369036564,1751441440858,-460.0,0.00016438,2]
[369036566,1751441440868,-460.0,0.00016438,2]
[369036569,1751441440877,-460.0,0.00016438,2]
[369036571,1751441440888,-460.0,0.00016438,2]
[369036572,1751441440897,-460.0,0.00016438,2]
[369036574,1751441440911,-460.0,0.00016438,2]
[369036576,1751441440920,-460.0,0.00016438,2]
[369036578,1751441440930,-460.0,0.00016438,2]
[369036581,1751441440942,-712.66,0.00016438,2]
[369036583,1751441440951,-460.0,0.00016438,2]
[369036585,1751441440961,-460.0,0.00016438,2]
[369036586,1751441440970,-460.0,0.00016438,2]
[369036589,1751441440980,-460.0,0.00016438,2]
[369036591,1751441440990,-460.0,0.00016438,2]
[369036593,1751441440999,-460.0,0.00016438,2]
[369036594,1751441441009,-313.48931798,0.00016438,2]
[369036596,1751441441020,-102.36156328,0.00016438,2]
[369036600,1751441441045,-717.37843672,0.00016438,2]
[369036602,1751441441055,-5214.35,0.00016438,2]
[369036604,1751441441064,-549.75055699,0.00016438,2]
[369036606,1751441441074,-288.20933116,0.00016438,2]
[369036608,1751441441083,-460.0,0.00016438,2]
[369036610,1751441441093,-460.0,0.00016438,2]
[369036612,1751441441103,-511.38985754,0.00016438,2]
[369036614,1751441441112,-460.0,0.00016438,2]
[369036616,1751441441121,-467.03131479,0.00016438,2]
[369036618,1751441441131,-460.0,0.00016438,2]
[369036620,1751441441141,-463.9095131,0.00016438,2]
[369036622,1751441441150,-1560.64,0.00016438,2]
[369036624,1751441441159,-464.45138511,0.00016438,2]
[369036626,1751441441169,-440.76277074,0.00016438,2]
[369036628,1751441441178,-460.0,0.00016438,2]
[369036630,1751441441188,-460.0,0.00016438,2]
[369036632,1751441441197,-460.0,0.00016438,2]
[369036634,1751441441207,-460.0,0.00016438,2]
[369036636,1751441441216,-460.0,0.00016438,2]
[369036638,1751441441225,-460.0,0.00016438,2]
[369036640,1751441441235,-460.0,0.00016438,2]
[369036643,1751441441244,-460.0,0.00016438,2]
[369036645,1751441441253,-460.0,0.00016438,2]
[369036646,1751441441263,-460.0,0.00016438,2]
[369036649,1751441441272,-821.2,0.00016438,2]
[369036651,1751441441282,-568.02527756,0.00016438,2]
[369036653,1751441441291,-646.41,0.00016438,2]
[369036655,1751441441302,-1196.87,0.00016438,2]
[369036657,1751441441311,-3084.42,0.00016438,2]
[369036659,1751441441321,-460.0,0.00016438,2]
[369036661,1751441441332,-1468.84,0.00016438,2]
[369036663,1751441441342,-190.35,0.00016438,2]
[369036664,1751441441351,-460.0,0.00016438,2]
[369036666,1751441441360,-460.0,0.00016438,2]
[369036668,1751441441370,-460.0,0.00016438,2]
[369036671,1751441441379,-460.0,0.00016438,2]
[369036673,1751441441388,-460.0,0.00016438,2]
[369036674,1751441441398,-460.0,0.00016438,2]
[369036675,1751441441407,-460.0,0.00016438,2]
[369036676,1751441441416,-460.0,0.00016438,2]
[369036677,1751441441426,-460.0,0.00016438,2]
[369036678,1751441441436,-401.75313407,0.00016438,2]
[369036679,1751441441445,-436.40730184,0.00016438,2]
[369036680,1751441441455,-460.0,0.00016438,2]
[369036681,1751441441465,-825.96,0.00016438,2]
[369036682,1751441441474,-635.85,0.00016438,2]
[369036683,1751441441484,-460.0,0.00016438,2]
[369036684,1751441441493,-2951.4,0.00016438,2]
[369036685,1751441441502,-460.0,0.00016438,2]
[369036686,1751441441511,-460.0,0.00016438,2]
[369036687,1751441441521,-460.0,0.00016438,2]
[369036688,1751441441530,-460.0,0.00016438,2]
[369036689,1751441441540,-460.0,0.00016438,2]
[369036690,1751441441549,-460.0,0.00016438,2]
[369036691,1751441441557,-1024.46,0.00016438,2]
[369036692,1751441441567,-460.0,0.00016438,2]
[369036694,1751441441576,-744.53,0.00016438,2]
[369036696,1751441441585,-460.0,0.00016438,2]
[369036698,1751441441600,-460.0,0.00016438,2]
[369036700,1751441441610,-460.66801348,0.00016438,2]
[369036702,1751441441620,-460.0,0.00016438,2]
[369036704,1751441441630,-460.0,0.00016438,2]
[369036706,1751441441645,-460.0,0.00016438,2]
[369036708,1751441441655,-1355.15,0.00016438,2]
[369036710,1751441441665,-460.0,0.00016438,2]
[369036712,1751441441675,-500.0,0.00016438,2]
[369036714,1751441441685,-460.0,0.00016438,2]
[369036716,1751441441696,-460.0,0.00016438,2]
[369036718,1751441441706,-460.0,0.00016438,2]
[369036720,1751441441717,-460.0,0.00016438,2]
[369036722,1751441441727,-460.0,0.00016438,2]
[369036724,1751441441736,-632.78,0.00016438,2]
[369036726,1751441441745,-460.0,0.00016438,2]
[369036728,1751441441755,-460.0,0.00016438,2]
[369036730,1751441441764,-461.65796171,0.00016438,2]
[369036732,1751441441773,-460.0,0.00016438,2]
[369036734,1751441441782,-460.0,0.00016438,2]
[369036736,1751441441791,-460.0,0.00016438,2]
[369036738,1751441441800,-460.0,0.00016438,2]
[369036740,1751441441810,-460.0,0.00016438,2]
[369036742,1751441441819,-460.0,0.00016438,2]
[369036743,1751441441828,-460.0,0.00016438,2]
[369036745,1751441441837,-460.0,0.00016438,2]
[369036747,1751441441846,-460.0,0.00016438,2]
[369036749,1751441441856,-462.95534283,0.00016438,2]
[369036751,1751441441865,-460.0,0.00016438,2]
[369036753,1751441441874,-460.0,0.00016438,2]
[369036755,1751441441883,-460.0,0.00016438,2]
[369036757,1751441441893,-460.0,0.00016438,2]
[369036759,1751441441902,-460.0,0.00016438,2]
[369036761,1751441441911,-460.0,0.00016438,2]
[369036763,1751441441921,-460.0,0.00016438,2]
[369036765,1751441441930,-460.0,0.00016438,2]
[369036767,1751441441942,-2453.99,0.00016438,2]
[369036770,1751441441952,-458.19878345,0.00016438,2]
[369036771,1751441441962,-460.0,0.00016438,2]
[369036774,1751441441972,-1406.74,0.00016438,2]
[369036775,1751441441981,-460.0,0.00016438,2]
[369036777,1751441441990,-726.69,0.00016438,2]
[369036779,1751441442000,-460.0,0.00016438,2]
[369036781,1751441442009,-2646.04,0.00016438,2]
[369036784,1751441442020,-550.84,0.00016438,2]
[369036785,1751441442030,-460.90579993,0.00016438,2]
[369036787,1751441442040,-460.0,0.00016438,2]
[369036790,1751441442050,-460.0,0.00016438,2]
[369036792,1751441442061,-460.0,0.00016438,2]
[369036794,1751441442070,-460.0,0.00016438,2]
[369036796,1751441442079,-898.21,0.00016438,2]
[369036798,1751441442088,-500.0,0.00016438,2]
[369036800,1751441442098,-500.0,0.00016438,2]
[369036802,1751441442108,-500.0,0.00016438,2]
[369036803,1751441442118,-500.0,0.00016438,2]
[369036805,1751441442127,-500.0,0.00016438,2]
[369036807,1751441442137,-460.0,0.00016438,2]
[369036809,1751441442154,-500.0,0.00016438,2]
[369036811,1751441442166,-500.0,0.00016438,2]
[369036814,1751441442176,-500.0,0.00016438,2]
[369036816,1751441442187,-500.0,0.00016438,2]
[369036818,1751441442197,-500.0,0.00016438,2]
[369036820,1751441442207,-500.0,0.00016438,2]
[369036822,1751441442217,-500.0,0.00016438,2]
[369036824,1751441442226,-460.0,0.00016438,2]
[369036826,1751441442235,-404.66,0.00016438,2]
[369036828,1751441442244,-460.0,0.00016438,2]
[369036830,1751441442254,-460.0,0.00016438,2]
[369036832,1751441442264,-3391.71,0.00016438,2]
[369036834,1751441442274,-460.0,0.00016438,2]
[369036836,1751441442283,-660.44,0.00016438,2]
[369036838,1751441442293,-169.79646333,0.00016438,2]
[369036840,1751441442302,-585.11,0.00016438,2]
[369036842,1751441442312,-460.0,0.00016438,2]
[369036844,1751441442322,-460.0,0.00016438,2]
[369036846,1751441442331,-460.0,0.00016438,2]
[369036848,1751441442341,-716.13,0.00016438,2]
[369036850,1751441442350,-460.0,0.00016438,2]
[369036852,1751441442359,-460.0,0.00016438,2]
[369036854,1751441442368,-460.0,0.00016438,2]
[369036856,1751441442378,-460.0,0.00016438,2]
[369036858,1751441442387,-635.3,0.00016438,2]
[369036860,1751441442397,-460.0,0.00016438,2]
[369036862,1751441442406,-460.0,0.00016438,2]
[369036864,1751441442415,-460.0,0.00016438,2]
[369036866,1751441442424,-460.0,0.00016438,2]
[369036868,1751441442433,-460.0,0.00016438,2]
[369036870,1751441442443,-460.0,0.00016438,2]
[369036872,1751441442452,-460.0,0.00016438,2]
[369036874,1751441442461,-460.0,0.00016438,2]
[369036876,1751441442470,-461.63140514,0.00016438,2]
[369036878,1751441442480,-460.0,0.00016438,2]
[369036880,1751441442490,-608.54,0.00016438,2]
[369036882,1751441442499,-965.77,0.00016438,2]
[369036884,1751441442509,-1763.88,0.00016438,2]
[369036886,1751441442518,-633.96,0.00016438,2]
[369036888,1751441442527,-460.0,0.00016438,2]
[369036890,1751441442536,-460.0,0.00016438,2]
[369036892,1751441442547,-4271.35,0.00016438,2]
[369036894,1751441442555,-430.0,0.00016438,2]
[369036896,1751441442564,-465.17,0.00016438,2]
[369036898,1751441442573,-500.0,0.00016438,2]
[369036900,1751441442582,-460.0,0.00016438,2]
[369036902,1751441442591,-460.0,0.00016438,2]
[369036904,1751441442600,-1528.22,0.00016438,2]
[369036906,1751441442609,-460.0,0.00016438,2]
[369036908,1751441442618,-5813.8,0.00016438,2]
[369036910,1751441442629,-552.73,0.00016438,2]
[369036912,1751441442638,-460.0,0.00016438,2]
[369036914,1751441442647,-460.0,0.00016438,2]
[369036916,1751441442656,-605.07,0.00016438,2]
[369036918,1751441442665,-1964.86,0.00016438,2]
[369036920,1751441442674,-460.0,0.00016438,2]
[369036922,1751441442683,-460.0,0.00016438,2]
[369036924,1751441442692,-585.87,0.00016438,2]
[369036926,1751441442701,-460.0,0.00016438,2]
[369036928,1751441442710,-1257.46,0.00016438,2]
[369036930,1751441442720,-560.53,0.00016438,2]
[369036932,1751441442729,-460.0,0.00016438,2]
[369036934,1751441442738,-460.0,0.00016438,2]
[369036936,1751441442748,-460.0,0.00016438,2]
[369036938,1751441442757,-232.29108513,0.00016438,2]
[369036940,1751441442766,-405.82077565,0.00016438,2]
[369036942,1751441442776,-463.81758682,0.00016438,2]
[369036944,1751441442786,-460.0,0.00016438,2]
[369036946,1751441442795,-506.46841183,0.00016438,2]
[369036948,1751441442804,-460.0,0.00016438,2]
[369036950,1751441442814,-458.5606036,0.00016438,2]
[369036952,1751441442823,-460.0,0.00016438,2]
[369036954,1751441442832,-460.0,0.00016438,2]
[369036956,1751441442841,-460.0,0.00016438,2]
[369036958,1751441442851,-650.11,0.00016438,2]
[369036960,1751441442861,-500.0,0.00016438,2]
[369036962,1751441442870,-500.0,0.00016438,2]
[369036964,1751441442879,-169.48750217,0.00016438,2]
[369036966,1751441442889,-500.0,0.00016438,2]
[369036968,1751441442898,-500.0,0.00016438,2]
[369036970,1751441442907,-460.0,0.00016438,2]
[369036972,1751441442918,-616.68,0.00016438,2]
[369036974,1751441442927,-460.0,0.00016438,2]
[369036976,1751441442937,-618.48,0.00016438,2]
[369036978,1751441442948,-621.54594303,0.00016438,2]
[369036980,1751441442957,-12415.46139032,0.00016438,2]
[369036982,1751441442966,-500.0,0.00016473,2]
[369036984,1751441442977,-500.0,0.00016473,2]
[369036986,1751441442986,-631.36701163,0.00016473,2]
[369036988,1751441442996,-501.46447308,0.00016473,2]
[369036990,1751441443005,-500.0,0.00016473,2]
[369036992,1751441443016,-500.0,0.00016473,2]
[369036994,1751441443025,-500.0,0.00016473,2]
[369036996,1751441443035,-500.2563182,0.00016473,2]
[369036998,1751441443044,-500.0,0.00016473,2]
[369037000,1751441443053,-500.0,0.00016473,2]
[369037002,1751441443062,-500.0,0.00016473,2]
[369037004,1751441443071,-500.0,0.00016473,2]
[369037006,1751441443080,-500.0,0.00016473,2]
[369037008,1751441443089,-500.0,0.00016473,2]
[369037010,1751441443099,-230.11751401,0.00016473,2]
[369037012,1751441443108,-1721.05050748,0.00016632,2]
[369037014,1751441443117,-586.27526792,0.00016675,2]
[369037016,1751441443127,-1345.43,0.00016711,2]
[369037018,1751441443136,-1345.43,0.00016711,2]
[369037020,1751441443146,-1345.43,0.00016711,2]
[369037022,1751441443155,-460.0,0.00016712,2]
[369037024,1751441443164,-370.11502832,0.00016712,2]
[369037026,1751441443174,-461.99643723,0.00016712,2]
[369037029,1751441443184,-414.741986,0.00016712,2]
[369037030,1751441443193,-460.0,0.00016712,2]
[369037032,1751441443203,-460.0,0.00016712,2]
[369037034,1751441443212,-460.0,0.00016712,2]
[369037036,1751441443222,-460.0,0.00016712,2]
[369037039,1751441443231,-460.0,0.00016712,2]
[369037041,1751441443241,-460.0,0.00016712,2]
[369037043,1751441443250,-233.12817313,0.00016712,2]
[369037045,1751441443260,-460.0,0.00016712,2]
[369037047,1751441443270,-460.0,0.00016712,2]
[369037049,1751441443278,-460.0,0.00016712,2]
[369037051,1751441443289,-460.0,0.00016712,2]
[369037053,1751441443298,-460.0,0.00016712,2]
[369037054,1751441443308,-360.2096067,0.00016712,2]
[369037056,1751441443318,-460.0,0.00016712,2]
[369037058,1751441443327,-460.0,0.00016712,2]
[369037060,1751441443337,-460.0,0.00016712,2]
[369037062,1751441443346,-460.0,0.00016712,2]
[369037064,1751441443355,-460.0,0.00016712,2]
[369037067,1751441443365,-460.0,0.00016712,2]
[369037069,1751441443375,-460.0,0.00016712,2]
[369037071,1751441443384,-462.31480342,0.00016712,2]
[369037073,1751441443393,-462.29069578,0.00016712,2]
[369037075,1751441443404,-460.0,0.00016712,2]
[369037077,1751441443414,-460.0,0.00016712,2]
[369037079,1751441443423,-430.0,0.00016712,2]
[369037081,1751441443433,-460.0,0.00016712,2]
[369037083,1751441443442,-460.0,0.00016712,2]
[369037085,1751441443451,-460.0,0.00016712,2]
[369037087,1751441443460,-460.0,0.00016712,2]
[369037090,1751441443470,-466.34430824,0.00016712,2]